Cogmind - Beta 14 @@@ ROGUE MODE // 2025.03.27 @ 14:28:49 Player: neutral Result: Destroyed by Y-45 Defender with Heavy Assault Rifle Performance ------------- Evolutions (2) 1000 Regions Visited (5) 1000 Robots Destroyed (17) 85 Value Destroyed (482) 482 Prototype IDs (2) 40 Alien Tech Used (0) 0 Bonus (200) 200 TOTAL SCORE: 2807 Bonus ------- Entered Garrisons 200 Cogmind --------- Core Integrity 0/550 Matter 300/300 Energy 100/100 System Corruption 0% Temperature Cool (37) Movement Core (50) Location -8/Garrison Parts ------- > --- POWER (2) -------- (None) > --- PROPULSION (4) --- (None) > --- UTILITY (3) ------ (None) > --- WEAPON (2) ------- (None) > --- INVENTORY (5) ---- Light Ion Engine Light Armor Plating EM Shotgun Small Laser Grenade Launcher Peak State ------------ > --- POWER ------------ Light Ion Engine Improved Ion Engine > --- PROPULSION ------- Aluminum Leg Aluminum Leg Aluminum Leg Improved Aluminum Leg > --- UTILITY ---------- Small Storage Unit Sensor Array Medium Armor Plating > --- WEAPON ----------- Medium Laser Particle Cannon > --- INVENTORY -------- Light Ion Engine Light Armor Plating Light Armor Plating EM Shotgun Small Laser Grenade Launcher [Rating: 15] Favorites ----------- Power Light Ion Engine Engine Light Ion Engine Propulsion Aluminum Leg Leg Aluminum Leg Flight Unit Flight Unit Utility Small Storage Unit Device Sensor Array Storage Small Storage Unit Protection Medium Armor Plating Weapon Small Laser Energy Gun Small Laser Energy Cannon Particle Cannon Ballistic Gun Light Assault Rifle Build | -11 -10 -10 -9 -8 -8 ------- Run | Yrd Mat Min Mat Mat Gar Slots Evolved 4 | . . . 2 2 . Power 1 | . . . 1 . . Propulsion 2 | . . . . 2 . Utility 1 | . . . 1 . . Weapon . | . . . . . . Parts Attached 27 | 5 5 . 14 2 1 Power 6 | 1 1 . 4 . . Engine 6 | 1 1 . 4 . . Core . | . . . . . . Reactor . | . . . . . . Propulsion 8 | 1 2 . 2 2 1 Treads . | . . . . . . Leg 7 | 1 2 . 2 2 . Wheel . | . . . . . . Hover . | . . . . . . Flight 1 | . . . . . 1 Utility 6 | 1 1 . 4 . . Device 2 | . 1 . 1 . . Storage 1 | 1 . . . . . Processor . | . . . . . . Hackware . | . . . . . . Protection 3 | . . . 3 . . Artifact . | . . . . . . Weapon 7 | 2 1 . 4 . . Energy Gun 3 | 1 . . 2 . . Energy Cannon 1 | . . . 1 . . Ballistic Gun 3 | 1 1 . 1 . . Ballistic Cannon . | . . . . . . Launcher . | . . . . . . Special Weapon . | . . . . . . Impact Weapon . | . . . . . . Slashing Weapon . | . . . . . . Piercing Weapon . | . . . . . . Special Melee Weapon . | . . . . . . Unidentified Prototypes 2 | . . . 2 . . Parts Lost 15 | . . . 3 . 12 Power 3 | . . . 1 . 2 Propulsion 5 | . . . . . 5 Utility 3 | . . . . . 3 Weapon 4 | . . . 2 . 2 Highest Loss Streak 11 | . . . 2 . 11 To Critical Strikes . | . . . . . . Average Slot Usage (%) 90 | . 82 100 96 100 79 Engine 17 | . 14 14 20 18 15 Leg 22 | . 19 28 22 36 25 Device 10 | . 5 14 14 9 7 Storage 11 | . 14 14 11 9 8 Protection 4 | . . . 6 9 7 Energy Gun 11 | . 14 14 11 9 7 Energy Cannon 3 | . . . 3 9 7 Ballistic Gun 7 | . 14 14 5 . . Peak Build Rating 15 | 5 7 7 13 15 15 Average Rating 9 | 4 5 7 11 14 12 On Entrance 7 | . 5 7 7 13 15 Naked Turns 7 | . . . . . 7 Heaviest Build 29 | 12 14 14 29 29 29 Greatest Support 43 | 10 20 20 23 43 43 Greatest Overweight (x) 2 | 1 1 . 1 . 2 Average Overweight (x) . | . . . . . . Largest Inventory Capacity 8 | 8 8 8 8 8 8 Average Capacity 7 | 7 8 8 8 8 7 Most Carried 8 | 3 8 5 8 7 6 Average Carried 6 | 1 6 5 6 6 5 Final Capacity 8 | 8 8 8 8 8 5 Final Carried 8 | 3 5 5 8 6 5 Class Distribution -------------------- 91% | Mutant 8% | Scavenger-Mutant Dominant Class ---------------- Mutant | -10/Materials Mutant | -10/Mines Mutant | -9/Materials Scavenger-Mutant | -8/Materials Mutant | -8/Garrison Resources | -11 -10 -10 -9 -8 -8 ----------- Run | Yrd Mat Min Mat Mat Gar Matter Collected 493 | 250 43 . 168 30 2 Remotely . | . . . . . . Salvage Created 599 | . 83 . 479 . 37 Parts 44 | . 4 . 35 . 5 Haulers Intercepted . | . . . . . . Recyclers Shooed . | . . . . . . Parts Field Recycled . | . . . . . . Retrieved Matter . | . . . . . . Parts Self-Destructed . | . . . . . . Prevented . | . . . . . . Kills | -11 -10 -10 -9 -8 -8 ------- Run | Yrd Mat Min Mat Mat Gar Combat Hostiles Destroyed 16 | . 2 . 11 . 3 Guns 11 | . 2 . 9 . . Cannons 5 | . . . 2 . 3 Classes Destroyed 5 | . 1 . 4 . . Worker 1 | . . . 1 . . Swarmer 6 | . . . 3 . 3 Grunt 4 | . 2 . 2 . . Duelist 1 | . . . 1 . . Sentry 5 | . . . 5 . . Best Kill Streak 3 | . 2 . 3 . 3 Combat Bots Only 3 | . 2 . 3 . 3 Max Kills in Single Turn 1 | . 1 . 1 . 1 Gunslinging . | . . . . . . Exploded . | . . . . . . Melee . | . . . . . . Uniques/NPCs Destroyed . | . . . . . . Combat | -11 -10 -10 -9 -8 -8 -------- Run | Yrd Mat Min Mat Mat Gar Hostile Shots Fired 269 | . 16 . 65 . 188 Missed 83 | . 2 . 16 . 65 Damage Taken 2216 | . 201 . 677 . 1338 Core 756 | . 29 . 168 . 559 Absorbed by Shields . | . . . . . . Core Remaining (%) 82 | 100 . 88 58 . . Volleys Fired 49 | . 14 . 27 . 8 Largest 2 | . 2 . 2 . 2 Hottest 118 | . 60 . 118 . 118 Shots Fired 94 | . 28 . 53 . 13 Gun 75 | . 28 . 42 . 5 Cannon 19 | . . . 11 . 8 Launcher . | . . . . . . Special . | . . . . . . Kinetic 23 | . 14 . 9 . . Thermal 56 | . 14 . 29 . 13 Explosive . | . . . . . . Electromagnetic 15 | . . . 15 . . Robot Hit Streak 9 | . 8 . 9 . 3 Robot Miss Streak 3 | . 2 . 3 . 2 Penetration Max . | . . . . . . Secondary Targets . | . . . . . . Shots Hit Robots 56 | . 18 . 31 . 7 Core Hits 30 | . 7 . 18 . 5 Critical Kills . | . . . . . . Critical Parts Destroyed . | . . . . . . Critical Strikes 2 | . . . 2 . . Burn 2 | . . . 2 . . Melee Attacks . | . . . . . . Impact . | . . . . . . Slashing . | . . . . . . Piercing . | . . . . . . Sneak Attacks . | . . . . . . Combat Hostiles . | . . . . . . Follow-up Attacks . | . . . . . . Damage Inflicted 846 | . 177 . 484 . 185 Guns 550 | . 177 . 361 . 12 Cannons 266 | . . . 123 . 143 Explosions . | . . . . . . Melee . | . . . . . . Ramming 30 | . . . . . 30 Kinetic 148 | . 77 . 71 . . Thermal 530 | . 100 . 275 . 155 Explosive . | . . . . . . Electromagnetic 138 | . . . 138 . . Impact . | . . . . . . Slashing . | . . . . . . Piercing . | . . . . . . Highest Corruption . | . . . . . . Average Corruption . | . . . . . . Corruption Purged . | . . . . . . Corruption Blocked . | . . . . . . Overload Shots . | . . . . . . Overflow Damage 2 | . . . . . 2 Projectiles 2 | . . . . . 2 Explosions . | . . . . . . Melee . | . . . . . . Knockbacks . | . . . . . . Impact . | . . . . . . Kinetic . | . . . . . . Secondary . | . . . . . . Self-Inflicted Damage 14 | . . . . . 14 Shots . | . . . . . . Rammed 6 | . . . . . 6 Targets Rammed 6 | . . . . . 6 Kicked . | . . . . . . Crushed . | . . . . . . Highest Temperature 357 | . 174 . 307 . 357 Average Temperature 121 | . 74 . 127 . 150 Received Heat Transfer 705 | . 114 . 240 . 351 Siege Activations . | . . . . . . Robots Corrupted . | . . . . . . Combat Hostiles . | . . . . . . Parts Fried 1 | . . . 1 . . Impact Corruptions . | . . . . . . Robots Melted . | . . . . . . Combat Hostiles . | . . . . . . Parts Melted 3 | . . . 2 . 1 Heat Transferred 1335 | . 225 . 814 . 296 Parts Sabotaged . | . . . . . . Parts Stolen . | . . . . . . Parts Stripped . | . . . . . . Power Chain Reactions . | . . . . . . Alert | -11 -10 -10 -9 -8 -8 ------- Run | Yrd Mat Min Mat Mat Gar Peak Influence 170 | . 65 . 170 67 98 Initial 63 | . . . . 63 43 Average 56 | . 11 . 102 63 41 Maximum Alert Level . | . . . . . . Low Security (%) 100 | 100 100 100 100 100 100 Level 1 . | . . . . . . Level 2 . | . . . . . . Level 3 . | . . . . . . Level 4 . | . . . . . . Level 5 . | . . . . . . High Security . | . . . . . . Max Security . | . . . . . . Squads Dispatched 1 | . . . 1 . . Investigation . | . . . . . . Extermination . | . . . . . . Reinforcement 1 | . . . 1 . . Assault . | . . . . . . Garrison . | . . . . . . Intercept . | . . . . . . Searches Triggered . | . . . . . . Construction Impeded . | . . . . . . Haulers Reinforced . | . . . . . . Active Scanning Responses . | . . . . . . Cargo Convoy Interrupts . | . . . . . . Stealth | -11 -10 -10 -9 -8 -8 --------- Run | Yrd Mat Min Mat Mat Gar Distress Signals 2 | . . . 2 . . Communications Jammed . | . . . . . . Distress Signals . | . . . . . . Times Spotted 33 | . 4 . 14 . 15 Peak Tracking Total 13 | . 3 . 4 . 13 Tactical Retreats 2 | . . . 1 . 1 Traps | -11 -10 -10 -9 -8 -8 ------- Run | Yrd Mat Min Mat Mat Gar Traps Triggered . | . . . . . . Indirectly . | . . . . . . Trap Hack Attempts . | . . . . . . Triggered . | . . . . . . Disarmed . | . . . . . . Reprogrammed . | . . . . . . Reused . | . . . . . . Traps Extracted . | . . . . . . Installed . | . . . . . . Triggered . | . . . . . . Machines | -11 -10 -10 -9 -8 -8 ---------- Run | Yrd Mat Min Mat Mat Gar Machines Disabled . | . . . . . . Max in Single Turn . | . . . . . . Machines Repaired . | . . . . . . Machines Dismantled . | . . . . . . Machines Sabotaged . | . . . . . . Overloaded Fab Kills . | . . . . . . Hacking | -11 -10 -10 -9 -8 -8 --------- Run | Yrd Mat Min Mat Mat Gar Machines Accessed 2 | . 1 . . 1 . Terminals 1 | . 1 . . . . Fabricators . | . . . . . . Repair Stations . | . . . . . . Recycling Units . | . . . . . . Scanalyzers . | . . . . . . Garrison Access 1 | . . . . 1 . Total Hacks 3 | . 1 . . 2 . Successful 2 | . 1 . . 1 . Failed 1 | . . . . 1 . Catastrophic . | . . . . . . Database Lockouts . | . . . . . . Manual 3 | . . . . . 3 Terminals 1 | . 1 . . . . Fabricators . | . . . . . . Repair Stations . | . . . . . . Recycling Units . | . . . . . . Scanalyzers . | . . . . . . Garrison Access 2 | . . . . 2 . Terminal Hacks 1 | . 1 . . . . Emergency Access Points 1 | . 1 . . . . Fabricator Hacks . | . . . . . . Repair Station Hacks . | . . . . . . Recycling Unit Hacks . | . . . . . . Scanalyzer . | . . . . . . Garrison Access Hacks 1 | . . . . 1 . Unlock Access 1 | . . . . 1 . Unauthorized Hacks . | . . . . . . Terminals . | . . . . . . Fabricators . | . . . . . . Repair Stations . | . . . . . . Recycling Units . | . . . . . . Scanalyzers . | . . . . . . Garrison Access . | . . . . . . Data Cores Recovered . | . . . . . . Used . | . . . . . . Hacking Detections 2 | . . . . 1 1 Full Trace Events . | . . . . . . Feedback Events . | . . . . . . Feedback Blocked . | . . . . . . Robot Schematics Acquired . | . . . . . . Robots Built . | . . . . . . Authchips . | . . . . . . Time . | . . . . . . Total Robot Build Rating . | . . . . . . Part Schematics Acquired . | . . . . . . Parts Built . | . . . . . . Authchips . | . . . . . . Time . | . . . . . . Total Part Build Rating . | . . . . . . Parts Repaired . | . . . . . . Time . | . . . . . . Parts Recycled . | . . . . . . Recycled Matter . | . . . . . . Retrieved Matter . | . . . . . . Retrieved Components . | . . . . . . Parts Scanalyzed . | . . . . . . Part Schematics Acquired . | . . . . . . Parts Damaged . | . . . . . . Bothacking | -11 -10 -10 -9 -8 -8 ------------ Run | Yrd Mat Min Mat Mat Gar Used RIF Installer . | . . . . . . Robots Hacked . | . . . . . . Non-combat . | . . . . . . Combat . | . . . . . . Robot Hacks Applied . | . . . . . . Relay Couplers Released . | . . . . . . Fabnet Peak Effective % . | . . . . . . Robots Rewired . | . . . . . . Allies Hacked . | . . . . . . Hacks Repelled . | . . . . . . Allies | -11 -10 -10 -9 -8 -8 -------- Run | Yrd Mat Min Mat Mat Gar Total Allies . | . . . . . . Largest Group . | . . . . . . Highest-Rated Group . | . . . . . . Highest-Rated Ally . | . . . . . . Total Orders . | . . . . . . Ally Attacks . | . . . . . . Total Damage . | . . . . . . Kills . | . . . . . . Allies Corrupted . | . . . . . . Allies Melted . | . . . . . . Intel | -11 -10 -10 -9 -8 -8 ------- Run | Yrd Mat Min Mat Mat Gar Robot Analysis Total . | . . . . . . Derelict Logs Recovered . | . . . . . . Drone Launches . | . . . . . . Drone Recoveries . | . . . . . . Exploration | -11 -10 -10 -9 -8 -8 ------------- Run | Yrd Mat Min Mat Mat Gar Turns Passed 1373 | 93 421 39 612 68 140 Spaces Moved 775 | 53 200 33 336 56 97 Core 17 | 7 . . . . 10 Treads . | . . . . . . Legs 757 | 46 200 33 336 56 86 Wheels . | . . . . . . Hover . | . . . . . . Flight 1 | . . . . . 1 Fastest Speed 50 | 50 120 120 120 120 50 Average Speed 141 | 158 164 120 138 120 115 Slowest Speed 190 | 190 190 120 190 120 150 Overloaded Moves . | . . . . . . Propulsion Burnouts . | . . . . . . Robots Hopped . | . . . . . . Cave-ins Triggered . | . . . . . . Exploration Rate (%) 20 | 5 28 19 32 6 32 Regions Visited 5 Branch Regions 1 Pre-discovered Areas . | . . . . . . Known Exits Taken 1 | . . . . 1 . Unknown Exits Taken 4 | 1 1 1 1 . . Scrap Searched . | . . . . . . Spaces Dug . | . . . . . . Terrain Destroyed . | . . . . . . Melee . | . . . . . . Projectile . | . . . . . . AOE . | . . . . . . Terrain Rammed . | . . . . . . Walls Destroyed . | . . . . . . Machines Disabled . | . . . . . . Actions | -11 -10 -10 -9 -8 -8 --------- Run | Yrd Mat Min Mat Mat Gar Total 955 | 60 267 32 428 57 111 Wait 84 | . 39 . 45 . . Move 769 | 52 199 32 335 55 96 Hop . | . . . . . . Pick Up 13 | 3 7 . 3 . . Fast Attach 10 | 5 . . 4 . 1 Attach 8 | . 2 . 4 2 . Detach . | . . . . . . Swap 9 | . 3 . 6 . . Drop 7 | . 3 . 4 . . Fire 49 | . 14 . 27 . 8 Melee . | . . . . . . Ram 6 | . . . . . 6 Kick . | . . . . . . Crush . | . . . . . . Escape Stasis . | . . . . . . Rewire . | . . . . . . Trap . | . . . . . . Miscellaneous . | . . . . . . Route ------- -11/Scrapyard -10/Materials -10/Mines -9/Materials -8/Materials -8/Garrison (discovered 1 exit: [*Mat]) History --------- Turn | Location | Event 10 | -11/Scrapyard | Discovered new exit (range 16) 94 | -11/Scrapyard | Entered Materials 304 | -10/Materials | Build established: Mutant 504 | -10/Materials | Discovered new exit (range 7) 515 | -10/Materials | Entered Mines 539 | -10/Mines | Discovered new exit (range 9) 554 | -10/Mines | Entered Materials 554 | -9/Materials | Evolved 2 slots: Power x1, Utility x1 1138 | -9/Materials | Discovered new exit (range 16) 1166 | -9/Materials | Entered another Materials area 1166 | -8/Materials | Evolved 2 slots: Propulsion x2 1231 | -8/Materials | Identified exit to Garrison 1234 | -8/Materials | Entered Garrison 1329 | -8/Garrison | Discovered new exit (range 8) 1337 | -8/Garrison | Attempted to access garrison exit controls, blocked by remote lockdown 1365 | -8/Garrison | Core integrity fell below 50% 1372 | -8/Garrison | Core integrity fell below 20% 1374 | -8/Garrison | Destroyed by Y-45 Defender with Heavy Assault Rifle Last Messages --------------- 01349_ Med. Laser destroyed. 01351_ Sensor Array destroyed. 01351_ Destroyed Flight Unit. 01353_ Destroyed Lgt. Ion Engine. 01355_ Aluminum Leg destroyed. 01355_ Imp. Ion Engine destroyed. 01356_ Particle Cannon destroyed. 01358_ Lgt. Ion Engine destroyed. 01360_ Acquired Flight Unit. 01363_ Slammed into S-10 Pest. 01363_ Flight Unit destroyed. 01364_ Acquired 2 matter. 01364_ Slammed into G-47 Trooper. 01364_ Destabilizing: Core damaged (-22). 01365_ Slammed into G-47 Trooper. 01367_ Sml. Storage Unit destroyed. 01369_ Connecting with Garrison Terminal... 01371_ Slammed into G-47 Trooper. 01372_ Slammed into S-10 Pest. 01373_ Slammed into G-47 Trooper. Map ----- +----------------------------------------------------+ | ???????????????????????????????????# ## ## | | ?????????????????????????########### ## ## | | ?????????????????????????# | | ?????????????????????????# | | ?????????????????????????# ????#### | | ?????????????????????????# ????# ##*%## ## # | | ?????????????????????????# #???# #?# ## ## # | | ?????????????????????????# #??? #?# ######## # | | ?????????????????????????# #???# ?# #??????# # | | ?????????????????????????# #???# #?# #??????# # | | ?????????????????????????# #???# #?# #??????# # | | ????????????????####"""### #####+### ### #??# # | | ?????????????# =%= + #??# # | | ?????????????# * #####??# | | ?????????????????###"""### ############??????# | | ?????????????????????????# #?????????????????#### | | ?????????????????????????# #????????????????????? | | ?????????????????????????# #????????????????????? | | ?????????????????????????# #????????????????????? | | ?????????????????????????# #????????????????????? | | ?????????????????????????# #????????????????????? | | ?????????????????????????# #????????????????????? | | ?????????????????????????# g#????????????????????? | | ?????????????????????????# #????????????????????? | | ????????????????########## #????????????????????? | | ????????????????# %ss@Y #????????????????????? | | ????????????????# [%ggg #????????????????????? | | ????????????????# < #####s###????????????????????? | | ????????????????# #???#g#??????????????????????? | | ????????????????#####???# #??????????????????????? | | ????????????????????????# ##?????????????????????? | | ????????????????????????# "#?????????????????????? | | ????????????????????????# T#?????????????????????? | | ????????????????????????#""#?????????????????????? | | ????????????????????????####?????????????????????? | | ?????????????????????????????????????????????????? | | ?????????????????????????????????????????????????? | | ?????????????????????????????????????????????????? | | ?????????????????????????????????????????????????? | | ?????????????????????????????????????????????????? | | ?????????????????????????????????????????????????? | | ?????????????????????????????????????????????????? | | ?????????????????????????????????????????????????? | | ?????????????????????????????????????????????????? | | ?????????????????????????????????????????????????? | | ?????????????????????????????????????????????????? | | ?????????????????????????????????????????????????? | | ?????????????????????????????????????????????????? | | | | | +----------------------------------------------------+ Best States ------------- Heat Dissipation 50 Energy Generation 17 Energy Capacity 290 Matter Stores 300 Matter Capacity 300 Sight Range 16 Robot Scan Range 14 Terrain Scan Density 10 Armor Coverage 225 Evasion (%) 55 Item Schematics ----------------- None Robot Schematics ------------------ None Fabricated ------------ Nothing Alien Tech Used ----------------- None Achievements -------------- None Challenges ------------ None Game ------ Seed QuantumScanThruster Manual? 0 Play Time 00:31:07 Cumulative 2.6 hours Start 2024.08.21 @ 22:45:56 End 2025.03.27 @ 14:28:49 Sessions 20 Manual Loads 0 Difficulty Rogue Special Mode None Game No. 9 Rogue 9 Adventurer 0 Explorer 0 Win Type - Total 0 Types 0/0/0/0/0/0/0/0/0 Lore% 1 Gallery% 7 Achievement% 5 Wizard Run 0 Options --------- Layout 1 ASCII 0 Keyboard 0 Movement Mouse Keybinds 0 Fullscreen 1 Font 36/Smallcaps Map View 50x43 Zoom Use 0% Tactical HUD 1 Map Filters NONE Filters NONE Steam 1 RUN: 1b2bf400-6a94-4ea7-a0a3-812f20323274